[Event "85th Tata Steel Challengers 2023"]
[Site "Wijk aan Zee"]
[Date "2023.01.20"]
[Round "6.7"]
[White "L'Ami, Erwin"]
[Black "Warmerdam, Max"]
[Result "1-0"]
[ECO "D12"]
[WhiteElo "2627"]
[BlackElo "2616"]
[Annotator "TA"]
[PlyCount "99"]
[EventDate "2023.01.10"]
[EventType "tourn"]
[EventCountry "NED"]
[SourceTitle "playchess.com"]
[Source "ChessBase"]
[SourceQuality "1"]
[TimeControl "40/6000+30:30/3000+30:900+30"]

{[%evp 15,99,31,36,18,22,0,14,19,28,11,22,0,100,-7,-4,0,-4,-22,-2,-16,-6,-21,0,-53,-67,-54,-45,-66,-70,-69,-67,-58,-45,-54,-61,-40,8,-64,12,9,269,258,29973,-385,29974,29975,29974,29976,29976,29976,1545,739,956,241,247,239,672,653,672,665,672,661,661,620,611,529,466,0,431,403,852,837,1723,1723,1723,1723,1716,1708,1589,1509,1443,1349,1265,1031,6231,5839]} 1. d4 {[%emt 0:00:05]} d5 {[%emt 0:00:03]} 2. c4 {[%emt 0:00:13]} c6 {[%emt 0:00:05]} 3. Nf3 {[%emt 0:00:22]} Nf6 {[%emt 0:00:06]} 4. e3 {[%emt 0:00:08]} Bf5 {[%emt 0:00:06]} 5. Nc3 {[%emt 0:00:42]} e6 {[%emt 0:00:08]} 6. Nh4 {[%emt 0:00:41]} Be4 {[%emt 0:00:41]} 7. f3 {[%emt 0:00:16]} Bg6 {[%emt 0:00:06]} 8. Qb3 {[%emt 0:00:26]} Qc7 {[%emt 0:01:07]} 9. cxd5 {[%emt 0:00:21] D12: Slav Defence: 3 Nf3 Nf6 4 e3 Bf5.} cxd5 {[%emt 0:00:20]} 10. Bd2 {[%emt 0:03:35]} Nc6 {[%emt 0:00:33]} 11. O-O-O {[%emt 0:02:37] The position is equal.} a6 {[%emt 0:00:06] And now ...Na5 would win.} 12. Nxg6 {[%emt 0:02:27]} hxg6 {[%emt 0:00:05]} 13. Kb1 {[%emt 0:00:23]} b5 {[%emt 0:00:11] [#]} (13... Rxh2 $2 14. Rxh2 Nxd4 15. exd4 $18) (13... Be7 $11) 14. Ne2 $146 {[%emt 0:11:23]} (14. Nxb5 $1 $16 axb5 15. Rc1) ({Predecessor:} 14. Rc1 Na5 15. Qc2 Nc4 16. Bxc4 bxc4 17. e4 Be7 18. Bg5 Qc6 19. h4 Rb8 20. Ka1 {½-½ Sintoro,A (1800)-Boettcher,F (1929) IECG CB.2004.0.00113 email}) 14... Na5 {[%emt 0:09:29]} 15. Bxa5 {[%emt 0:05:36]} Qxa5 {[%emt 0:00:22]} 16. e4 {[%emt 0:06:18]} Be7 {[%emt 0:03:35]} 17. Qe3 {[%emt 0:12:57]} Rc8 {[%emt 0:31:15]} 18. Nf4 {[%emt 0:08:33]} O-O {[%emt 0:01:50]} 19. exd5 {[%emt 0:06:54]} (19. h4 $11) 19... Bd6 $1 $15 {[%emt 0:08:05]} 20. Bd3 {[%emt 0:05:48]} Bxf4 {[%emt 0:01:26][%mdl 64] Remove Defender} (20... exd5 21. Nxg6 Rfe8 22. Ne5 $16) (20... Nxd5 21. Nxd5 exd5 22. Qg5 $11) 21. Qxf4 {[%emt 0:00:44] Black must now prevent dxe6.} Nxd5 {[%emt 0:00:06]} (21... exd5 22. Rc1 $11) 22. Qd2 {[%emt 0:01:03]} b4 {[%emt 0:15:04][%cal Od5c3] ...Nc3+! is the strong threat.} 23. Ka1 {[%emt 0:05:06]} Qa4 {[%emt 0:01:48]} 24. h4 {[%emt 0:12:01][%cal Bh2h4,Bh4h5,Bh5g6,Bg6f7][%mdl 32]} b3 {[%emt 0:00:25][%csl Gb3][%cal Ra4a2]} 25. a3 {[%emt 0:00:09]} a5 {[%emt 0:19:14]} (25... Nc3 $15 26. Rc1 (26. bxc3 $2 Qxa3+ 27. Kb1 b2 $19) 26... Nb5 27. Bxb5 axb5) 26. Kb1 {[%emt 0:09:10]} (26. h5 $11 Qxd4 27. hxg6) 26... Rc7 {[%emt 0:00:23]} (26... Qxd4 $15 27. Ba6 Qxd2 28. Rxd2 Rcd8) 27. h5 $11 {[%emt 0:03:25]} Rfc8 $2 {[%emt 0:00:53][%mdl 8192] White now steadily converts the win.} (27... Qxd4 $11 {and Black is okay.} 28. hxg6 fxg6) 28. hxg6 $18 {[%emt 0:00:23]} Rc2 $2 {[%emt 0:09:11] [#]} (28... Qxd4 $2 29. gxf7+ Kf8 30. Rh8+ (30. Qxa5 $2 Rc2 $19 {[%mdl 64] Promotion}) 30... Ke7 31. Re8+ (31. Qg5+ Qf6 $16) 31... Kxf7 32. Bg6+ Kxg6 33. Rxe6+ Kf7 34. Qxd4 $18) (28... Kf8 $18 29. Qe1 Rc2 30. Rh8+ Ke7 31. Rxc8 Rxc8 32. gxf7 Qd7 33. Qxa5 Qc7 34. Qxc7+ Rxc7) 29. Rh8+ $3 {[%emt 0:02:15][%mdl 576] Deflection} Kxh8 {[%emt 0:00:04] [#]} 30. gxf7 $1 {[%emt 0:00:08][%cal Rd1h1]} Rxb2+ {[%emt 0:00:02]} 31. Kxb2 {[%emt 0:01:34][%cal Rd1h1]} (31. Qxb2 g6 $18) 31... Qxd4+ {[%emt 0:00:06] [#]} 32. Kb1 $1 {[%emt 0:00:08]} (32. Kxb3 Rc3+ 33. Ka2 Nb4+ 34. axb4 Qd5+ 35. Kb2 (35. Ka1 Ra3+ 36. Kb1 Qb3+ 37. Qb2 Qxd1+ 38. Qc1 Qxd3+ 39. Qc2 Qf1+ 40. Qc1 Ra1+ {[%mdl 64] Skewer, Deflection} 41. Kxa1 Qxc1+ 42. Ka2 Qc4+ 43. Kb1 Qxb4+ 44. Kc2 a4 45. g4 a3 46. g5 a2 47. f8=Q+ Qxf8 48. Kb2 Qa8 49. Kc3 a1=Q+ 50. Kd3 Qxf3+ 51. Kc4 Qfc3+ 52. Kb5 Qaa5#) 35... Qb3+ 36. Ka1 Qa4+ 37. Qa2 Qxd1+ 38. Bb1 Rc8 $11) 32... Qh4 {[%emt 0:00:05]} 33. Rc1 {[%emt 0:08:21]} (33. Qc1 $142 Rxc1+ 34. Rxc1 Nc3+ 35. Rxc3 Qd8 36. Bg6 Qf8 37. Rc1 Qxf7 38. Bxf7) 33... Rb8 {[%emt 0:05:53]} 34. Qe1 $2 {[%emt 0:02:39]} (34. Qb2 {White wants to mate with Qe5.} Rf8 35. Qe5 (35. Qxb3 g6 $18)) 34... Qxe1 {[%emt 0:03:39]} 35. Rxe1 {[%emt 0:00:02][%cal Re1h1][%mdl 4096] Endgame KRB-KRN} g5 $2 {[%emt 0:00:32]} (35... Nc3+ 36. Kc1 b2+ 37. Kd2 b1=Q 38. Bxb1 Nxb1+ 39. Rxb1 Rd8+ 40. Ke3 g6) 36. Rxe6 {[%emt 0:00:36] Re8+ would kill now.} Nc3+ {[%emt 0:00:20]} 37. Kc1 {[%emt 0:00:48]} (37. Kb2 Na4+ 38. Kb1 Rf8 $18) 37... Rf8 {[%emt 0:00:48]} 38. Re8 {[%emt 0:00:26]} Kg7 {[%emt 0:00:01]} 39. Bc4 {[%emt 0:00:28]} a4 {[%emt 0:00:15]} 40. Kb2 {[%emt 0:00:38]} Nd1+ {[%emt 0:00:07]} 41. Kc1 $2 {[%emt 0:02:40]} (41. Ka1 $18) 41... Nf2 $2 {[%emt 0:03:26][%mdl 8192]} (41... Nc3 $11 42. g4 Rxf7) 42. Kd2 {[%emt 0:03:26]} g4 {[%emt 0:03:55]} (42... Nh1 $142 43. Re5 Kf6) 43. fxg4 {[%emt 0:15:26] White is clearly winning.} Nxg4 {[%emt 0:00:47]} 44. Bd5 {[%emt 0:01:45]} Nf2 {[%emt 0:07:06]} 45. Rxf8 {[%emt 0:08:28]} Kxf8 {[%emt 0:00:05]} 46. Bc6 {[%emt 0:00:15]} b2 {[%emt 0:07:24]} 47. Kc2 {[%emt 0:00:14]} (47. Bxa4 b1=Q 48. Ke3 Ng4+ 49. Kd4 Qb6+ 50. Kc4 Ne5+ 51. Kd5 Nxf7 52. Bc2 Qb5+ 53. Kd4 Qb2+ 54. Kd3 Ne5+ 55. Ke4 Nd7 56. Bd3 Nc5+ {[%mdl 64] Deflection} 57. Kd5 Nxd3 58. Ke4 Qxa3 59. g4 Ke7 60. g5 Ke6 61. Ke3 Ke5 62. g6 Nf4+ 63. Kd2 Qb2+ 64. Kd1 Qe2+ 65. Kc1 Nd3+ 66. Kb1 Qb2#) 47... Nd1 {[%emt 0:00:47]} 48. Bf3 {[%emt 0:02:25]} (48. Kxd1 b1=Q+ 49. Kd2 Qb2+ 50. Ke3 Qc3+ 51. Ke4 Qxc6+ 52. Ke5 Qc5+ 53. Ke4 Qxa3 54. g4 Qd6 55. g5 a3 56. g6 Qxg6+ 57. Kf3 a2 58. Kf2 a1=Q 59. Ke3 Qg3+ 60. Kd2 Qb2+ 61. Kd1 Qg1#) ({Stronger than} 48. Bxa4 Nc3 49. Kxb2 Nxa4+ 50. Kb3 Nc5+ 51. Kc4 Nb7 $11) 48... Ne3+ {[%emt 0:00:09]} 49. Kxb2 {[%emt 0:00:07]} Nc4+ {[%emt 0:00:10]} 50. Kc3 {[%emt 0:01:17] A cool game by L'Ami.   Weighted Error Value: White=0.43/Black=0.80} 1-0

[Event "85th Tata Steel Challengers 2023"]
[Site "Wijk aan Zee"]
[Date "2023.01.21"]
[Round "7.1"]
[White "Donchenko, Alexander"]
[Black "Yilmaz, Mustafa"]
[Result "1-0"]
[ECO "D38"]
[WhiteElo "2627"]
[BlackElo "2609"]
[Annotator "TA"]
[PlyCount "93"]
[EventDate "2023.01.10"]
[EventType "tourn"]
[EventCountry "NED"]
[SourceTitle "playchess.com"]
[Source "ChessBase"]
[SourceQuality "1"]
[TimeControl "40/6000+30:30/3000+30:900+30"]

{[%evp 11,93,22,22,5,2,0,0,0,0,0,0,0,0,0,0,0,0,0,0,0,0,4,13,11,15,12,16,9,34,34,30,34,41,41,58,60,60,60,60,59,101,101,116,101,101,101,101,101,108,109,112,101,101,101,101,101,154,101,172,150,491,485,452,453,527,505,538,527,546,542,582,556,672,672,666,565,742,547,658,742,742,623,742,734]} 1. d4 {[%emt 0:00:03] Kapnisis,Spyridon} Nf6 {[%emt 0:00:07]} 2. c4 {[%emt 0:00:11]} e6 {[%emt 0:00:11]} 3. Nf3 {[%emt 0:00:16]} d5 {[%emt 0:00:15]} 4. Nc3 {[%emt 0:00:13]} Bb4 {[%emt 0:00:44]} 5. Qa4+ {[%emt 0:00:14]} Nc6 {[%emt 0:00:07]} 6. e3 {[%emt 0:00:08]} O-O {[%emt 0:00:43]} 7. Qc2 {[%emt 0:00:15] D38: Queen's Gambit Declined: Ragozin Defence (4 Nf3 Bb4).} b6 {[%emt 0:04:27]} 8. Bd2 {[%emt 0:01:51]} Bb7 {[%emt 0:00:47]} 9. cxd5 {[%emt 0:00:57] The position is equal.} exd5 {[%emt 0:00:13]} 10. a3 {[%emt 0:00:17]} Bd6 {[%emt 0:04:03]} 11. Nb5 {[%emt 0:01:20]} Be7 {[%emt 0:17:37]} 12. Bd3 {[%emt 0:00:24]} a6 {[%emt 0:00:26]} 13. Nc3 {[%emt 0:00:07]} Bd6 {[%emt 0:00:14]} 14. O-O {[%emt 0:02:01]} Ne7 {[%emt 0:00:46]} 15. b4 {[%emt 0:05:33][%cal Bb2b4,Bb4b5][%mdl 32]} Ng6 {[%emt 0:00:21]} 16. b5 {[%emt 0:04:08] [#]} Re8 $146 {[%emt 0:00:01]} ({Predecessor:} 16... a5 17. a4 Re8 18. Bc1 Ne4 19. Ba3 Rc8 20. Rfc1 Nh4 21. Nxh4 Qxh4 22. g3 Qg5 23. Nxe4 dxe4 24. Bf1 Qf5 {½-½ Robson,R (2676)-Swiercz,D (2656) Saint Louis Spring-A 2022 (6)}) 17. Rfc1 {[%emt 0:08:16]} a5 {[%emt 0:00:15]} 18. Ne2 {[%emt 0:04:55]} Ne4 {[%emt 0:02:56]} 19. Be1 {[%emt 0:07:04]} h5 {[%emt 0:08:22]} 20. Ng3 {[%emt 0:15:10]} Nxg3 {[%emt 0:01:24]} 21. hxg3 {[%emt 0:01:24]} Qf6 {[%emt 0:00:39]} 22. Bc3 {[%emt 0:05:38][%cal Be1c3,Bc3b2,Bb2a3][%mdl 32]} Rad8 {[%emt 0:20:14]} 23. a4 {[%emt 0:06:56]} Bc8 {[%emt 0:14:45]} 24. Bb2 {[%emt 0:03:02]} Bg4 {[%emt 0:01:41]} 25. Nh2 {[%emt 0:04:43]} Be6 {[%emt 0:06:03]} 26. Ba3 {[%emt 0:04:09]} Rc8 {[%emt 0:00:28]} 27. Qd1 {[%emt 0:04:34]} h4 {[%emt 0:06:17]} 28. Bxd6 {[%emt 0:00:43]} cxd6 {[%emt 0:00:01]} 29. g4 {[%emt 0:00:41]} Ne7 {[%emt 0:05:01] Repels Rc6} 30. Rxc8 {[%emt 0:04:12]} Rxc8 {[%emt 0:01:12]} 31. Rc1 {[%emt 0:01:03]} g5 {[%emt 0:03:52]} 32. Rxc8+ {[%emt 0:02:52]} Nxc8 {[%emt 0:00:02]} 33. Qc2 {[%emt 0:00:16]} Kf8 {[%emt 0:05:26] [#]} 34. f4 {[%emt 0:06:10]} (34. Bf5 $142 $1 {[%mdl 512]}) 34... Qe7 {[%emt 0:01:54]} (34... Bd7 $16) 35. Kf2 {[%emt 0:08:08]} Qf6 $2 {[%emt 0:04:37] A mistake that costs the game.} (35... Qd8 $16 36. Bf5 gxf4) 36. f5 $18 {[%emt 0:01:24] White is clearly winning.} Bd7 {[%emt 0:01:41]} 37. Qc7 {[%emt 0:01:30] Inhibits Qd8.} Qe7 {[%emt 0:00:35]} 38. Qb7 {[%emt 0:01:32]} f6 {[%emt 0:00:14]} 39. Bc2 {[%emt 0:05:03]} ({Weaker is} 39. Qxd5 Be8 40. Qc4 Qd8 $18) 39... Ke8 {[%emt 0:00:39]} 40. Nf3 {[%emt 0:00:54]} Kd8 {[%emt 0:00:35]} 41. Qxd5 {[%emt 0:51:21]} Be8 {[%emt 0:01:34] Black is weak on the light squares} 42. Bb3 {[%emt 0:00:00]} Qd7 {[%emt 0:04:29]} 43. e4 {[%emt 0:00:00][%cal Be3e4,Be4e5][%mdl 32]} Ne7 {[%emt 0:02:04]} 44. Qa8+ {[%emt 0:00:00]} Qc8 {[%emt 0:00:11]} 45. Qa7 {[%emt 0:00:00]} Qc7 {[%emt 0:00:46]} 46. Qxc7+ {[%emt 0:00:00]} Kxc7 {[%emt 0:00:02]} 47. e5 {[%emt 0:00:00] Weighted Error Value: White=0.05 (flawless) /Black=0.28 (precise)} 1-0

[Event "85th Tata Steel Challengers 2023"]
[Site "Wijk aan Zee"]
[Date "2023.01.21"]
[Round "7.2"]
[White "Warmerdam, Max"]
[Black "Ivic, Velimir"]
[Result "1/2-1/2"]
[ECO "B15"]
[WhiteElo "2616"]
[BlackElo "2585"]
[Annotator "TA"]
[PlyCount "145"]
[EventDate "2023.01.10"]
[EventType "tourn"]
[EventCountry "NED"]
[SourceTitle "playchess.com"]
[Source "ChessBase"]
[SourceQuality "1"]
[TimeControl "40/6000+30:30/3000+30:900+30"]

{[%evp 10,145,36,13,19,4,38,35,41,42,43,32,29,18,24,25,20,25,52,29,34,0,0,-10,-6,-13,-7,-7,0,-12,-18,-19,0,-20,-23,-23,0,-31,-16,-25,-9,-37,0,-22,0,0,0,0,0,0,0,0,0,-20,0,-51,0,-57,0,0,0,-13,-8,-68,-48,-67,-39,-114,-135,-164,-156,-150,-108,-102,-35,-91,-60,-106,-20,-33,-8,-66,-43,-43,-43,-43,-43,-64,-64,-64,-64,-64,-64,-64,-64,-64,-64,-64,-64,-64,-48,-55,-48,-48,-48,-55,-48,-49,-54,-54,-47,-47,-47,-47,-47,-47,0,-47,-29,-29,-29,-29,-11,-11,-11,-21,-11,-118,-118,-118,-118,-118,-118,-118,-118,-118,-118,-118]} 1. e4 {[%emt 0:00:04]} c6 {[%emt 0:00:24]} 2. d4 {[%emt 0:00:39]} d5 {[%emt 0:00:06]} 3. Nc3 {[%emt 0:00:11]} dxe4 {[%emt 0:00:22]} 4. Nxe4 {[%emt 0:00:04]} Nf6 {[%emt 0:00:13]} 5. Nxf6+ {[%emt 0:00:07]} exf6 {[%emt 0:00:04]} 6. Be3 {[%emt 0:00:07]} Bd6 {[%emt 0:04:28] B15: Caro-Kann: 3 Nc3: 3...g6 and 3...dxe4 4 Nxe4 Nf6 5 Nxf6+ exf6.} 7. Bd3 {[%emt 0:00:07]} Nd7 {[%emt 0:01:56]} 8. Ne2 {[%emt 0:00:27] [#]} Nf8 $146 {[%emt 0:00:27] White is slightly better.} ({Predecessor:} 8... f5 9. O-O Nf6 10. c4 O-O 11. Qc2 Ng4 12. h3 Nxe3 13. fxe3 g6 14. Rf3 Bd7 {1-0 Vokhidov,S (2552)-Keymer,V (2672) Chess.com Rapid Wk25 Swiss 2022 (7)}) 9. c4 {[%emt 0:09:48]} Ng6 {[%emt 0:01:45]} 10. Qc2 {[%emt 0:01:29]} O-O {[%emt 0:03:00]} 11. O-O {[%emt 0:01:22]} Be6 {[%emt 0:06:10]} 12. Nc3 {[%emt 0:07:36]} Qc7 {[%emt 0:17:23]} 13. g3 {[%emt 0:01:02]} Bh3 {[%emt 0:06:26]} 14. Rfe1 {[%emt 0:02:26]} (14. c5 $5 {[%cal Rc5d6]} Be7 15. Rfe1 $14) 14... Qd7 {[%emt 0:02:32]} 15. Ne4 {[%emt 0:09:35]} Bb4 {[%emt 0:05:30]} 16. Nc5 {[%emt 0:04:11]} (16. Red1 $5) 16... Bxc5 {[%emt 0:02:34]} 17. dxc5 {[%emt 0:00:02]} Rad8 {[%emt 0:05:30]} 18. Rad1 {[%emt 0:06:25] [#] Threatens to win with Bxg6.} Bg4 {[%emt 0:02:27]} 19. Rd2 {[%emt 0:00:44] aiming for Bxg6.} Qc8 {[%emt 0:04:12] White must now prevent ...Ne5.} 20. f4 {[%emt 0:01:46] Repels Ne5} Rfe8 {[%emt 0:02:25]} 21. Be4 {[%emt 0:04:49]} h5 {[%emt 0:17:05]} 22. Rd6 {[%emt 0:02:04]} Ne7 {[%emt 0:04:23]} (22... Re7 $5 {[%cal Rd8e8]}) 23. Bf2 {[%emt 0:03:34]} Nf5 {[%emt 0:00:24]} 24. Rxd8 {[%emt 0:05:00]} Rxd8 {[%emt 0:00:05]} 25. Qc3 {[%emt 0:00:38]} Kf8 {[%emt 0:05:06]} 26. Bg2 {[%emt 0:02:53]} Ne7 {[%emt 0:01:01]} 27. b4 {[%emt 0:05:58][%cal Bb2b4,Bb4b5][%mdl 32]} Bh3 {[%emt 0:02:34]} 28. Bh1 {[%emt 0:04:38]} Rd7 {[%emt 0:02:01]} 29. Bf3 {[%emt 0:19:32]} h4 {[%emt 0:00:13]} 30. Qa3 {[%emt 0:01:32]} a6 {[%emt 0:02:04]} 31. b5 {[%emt 0:03:22]} Be6 {[%emt 0:00:14]} (31... hxg3 {simplifies} 32. hxg3 axb5 33. cxb5 Be6) 32. Qa4 {[%emt 0:02:55]} (32. bxa6 $11 bxa6 33. Be2 (33. gxh4 Bxc4 34. Qa5 Bd5 $15)) 32... Rd3 {[%emt 0:03:07]} (32... cxb5 $15 33. cxb5 axb5 34. Qxb5 Nc6) 33. Be2 {[%emt 0:00:18]} (33. bxa6 $11 bxa6 34. Be4 hxg3 35. hxg3 (35. Bxd3 gxf2+ 36. Kxf2 Qb8 $11)) 33... Rd2 {[%emt 0:01:36]} (33... axb5 $15 34. cxb5 Rd2) 34. bxa6 {[%emt 0:00:18]} bxa6 {[%emt 0:00:13]} 35. Be3 {[%emt 0:01:01]} Rd8 {[%emt 0:00:46][%cal Bd2d8,Bd8e8,Be8e1][%mdl 32]} 36. Rd1 {[%emt 0:01:11]} (36. Qa5 $11) 36... Re8 $1 $15 {[%emt 0:00:43]} 37. Re1 {[%emt 0:03:41]} (37. gxh4 $2 {too greedy.} Bg4 38. Bf1 Bxd1 39. Qxd1 Nf5 $19) 37... Bg4 {[%emt 0:00:21]} 38. Bd3 {[%emt 0:01:52]} ({White should try} 38. Bxg4 $1 $15 Qxg4 39. Bf2) 38... Nf5 $17 {[%emt 0:02:37][%cal Be7f5,Bf5d4,Bd4c2][%mdl 32]} 39. Bf2 {[%emt 0:00:07]} Rxe1+ {[%emt 0:01:09]} 40. Bxe1 {[%emt 0:00:01]} Nd4 {[%emt 0:05:19] And now ...Qd8 would win.} 41. Kf2 {[%emt 0:09:11]} Bf5 {[%emt 0:27:14]} ({Better is} 41... Qe8 $17 {...Nf3 would be deadly.} 42. Bc3 Nf5) 42. Bf1 {[%emt 0:03:20]} (42. Qd1 $15) 42... Nc2 {[%emt 0:10:09]} 43. Qb3 {[%emt 0:10:53]} (43. Qa5 $1 $15) 43... Be4 {[%emt 0:00:53]} (43... Kg8 $17 {...Be4 is the strong threat.} 44. Qf3 Qd7) 44. Bd3 $11 {[%emt 0:03:33]} Nd4 {[%emt 0:03:10]} 45. Qb2 {[%emt 0:01:13] White is weak on the light squares} (45. Qd1 $11 Qf5 46. Qb1 Bxd3 47. Qb8+ Ke7 48. Qd6+ Ke8 49. Qb8+ Ke7 50. Qd6+ Ke8 51. Qb8+ Ke7) 45... hxg3+ {[%emt 0:02:31]} 46. hxg3 {[%emt 0:00:26]} Bxd3 {[%emt 0:00:07]} 47. Qxd4 $15 {[%emt 0:00:05][%mdl 4096] Endgame KQB-KQB} Bb1 {[%emt 0:00:09]} 48. Ba5 {[%emt 0:20:15]} Bxa2 {[%emt 0:04:48]} 49. g4 {[%emt 0:00:04]} Kg8 {[%emt 0:00:58]} (49... Qxg4 $2 50. Qd8#) 50. f5 {[%emt 0:04:12]} Qb8 {[%emt 0:00:54] Strongly threatening ...Qh2+.} 51. Qd8+ {[%emt 0:01:41]} Qxd8 {[%emt 0:00:04]} 52. Bxd8 {[%emt 0:00:02]} Bxc4 {[%emt 0:00:20] KB-KB} 53. Kf3 {[%emt 0:00:13]} Kf8 {[%emt 0:00:18]} 54. Ba5 {[%emt 0:00:24]} g6 {[%emt 0:00:55]} 55. Bc3 {[%emt 0:00:46]} Kg7 {[%emt 0:00:05]} 56. Kf4 {[%emt 0:00:26]} Bd3 {[%emt 0:00:13]} 57. Bd2 {[%emt 0:03:40]} Bc2 {[%emt 0:01:22]} 58. Bc3 {[%emt 0:00:04]} Kh6 {[%emt 0:00:42]} 59. Bd2 {[%emt 0:01:10]} gxf5 {[%emt 0:01:54]} 60. gxf5 {[%emt 0:00:04]} Kh5 {[%emt 0:00:04]} 61. Bc3 {[%emt 0:00:57]} Bb1 {[%emt 0:00:35]} 62. Be1 {[%emt 0:02:03]} Bc2 {[%emt 0:01:52]} 63. Bc3 {[%emt 0:00:19]} Kh4 {[%emt 0:00:13]} 64. Bxf6+ {[%emt 0:01:09]} Kh3 {[%emt 0:00:05]} 65. Bc3 {[%emt 0:00:28]} Kg2 {[%emt 0:00:18]} 66. f6 {[%emt 0:00:05]} Kf2 {[%emt 0:00:46]} 67. Ba5 {[%emt 0:00:16]} Ke2 {[%emt 0:00:09]} 68. Bb6 {[%emt 0:00:19]} (68. Ke5 $1 $11 {was the only way to keep the balance.}) 68... Kd3 $17 {[%emt 0:00:15] Black is better.} 69. Kf3 {[%emt 0:00:18]} Bb3 {[%emt 0:01:25]} 70. Kf2 {[%emt 0:00:29]} Be6 {[%emt 0:03:09]} 71. Ke1 {[%emt 0:15:17]} Bg4 {[%emt 0:15:05]} 72. Ba5 {[%emt 0:00:49]} Kc4 {[%emt 0:00:46]} 73. Bb6 {[%emt 0:00:05] Weighted Error Value: White=0.16 (very precise) /Black=0.13 (very precise)} 1/2-1/2

[Event "85th Tata Steel Challengers 2023"]
[Site "Wijk aan Zee"]
[Date "2023.01.21"]
[Round "7.3"]
[White "Sindarov, Javokhir"]
[Black "Roebers, Eline"]
[Result "1-0"]
[ECO "C07"]
[WhiteElo "2654"]
[BlackElo "2361"]
[Annotator "TA"]
[PlyCount "83"]
[EventDate "2023.01.10"]
[EventType "tourn"]
[EventCountry "NED"]
[SourceTitle "playchess.com"]
[Source "ChessBase"]
[SourceQuality "1"]
[TimeControl "40/6000+30:30/3000+30:900+30"]

{[%evp 9,83,10,2,7,10,10,16,0,17,15,27,31,29,31,16,23,17,28,22,11,45,16,18,12,104,91,99,39,31,48,51,54,65,44,62,0,0,0,29,16,31,43,107,94,100,89,210,220,212,217,229,223,220,211,221,214,250,247,236,255,436,431,417,424,408,400,386,361,334,304,571,569,747,748,660,655]} 1. e4 {[%emt 0:00:04]} e6 {[%emt 0:00:03]} 2. d4 {[%emt 0:00:06]} d5 {[%emt 0:00:04]} 3. Nd2 {[%emt 0:00:07]} c5 {[%emt 0:01:00]} 4. exd5 {[%emt 0:00:19]} Qxd5 {[%emt 0:00:07]} 5. dxc5 {[%emt 0:00:07]} Nf6 {[%emt 0:01:15]} 6. Nb3 {[%emt 0:04:58] C07: French Tarrasch: 3...c5, 4 Ngf3 and 4 exd5 Qxd5.} Qxd1+ {[%emt 0:14:03]} 7. Kxd1 {[%emt 0:00:07]} Be7 {[%emt 0:00:05]} 8. Nf3 {[%emt 0:33:03] The position is equal.} Nbd7 {[%emt 0:07:58]} 9. Bb5 {[%emt 0:04:07]} a6 {[%emt 0:01:06] Black is weak on the dark squares} 10. Ba4 {[%emt 0:02:16]} O-O {[%emt 0:01:10]} 11. Be3 {[%emt 0:00:09]} Nd5 {[%emt 0:11:33]} 12. Bd4 {[%emt 0:03:19] [#]} f6 $146 {[%emt 0:00:31]} ({Predecessor:} 12... Rd8 13. Ke2 f6 14. c4 Nf4+ 15. Kf1 e5 16. Be3 Nd3 17. c6 N7c5 18. Nxc5 Bxc5 {1-0 Namitbir,S (2339)-Berczes,D (2446) Budapest SixDays 11 GM 2022 (6)}) 13. c4 {[%emt 0:06:56]} Nb4 {[%emt 0:01:14]} 14. a3 {[%emt 0:03:55]} Nc6 {[%emt 0:03:48]} (14... Nd3 $5 {[%cal Re6e5]}) 15. Bxc6 {[%emt 0:00:43]} bxc6 {[%emt 0:00:05]} 16. Na5 {[%emt 0:00:13]} Nb8 {[%emt 0:07:02]} (16... Nxc5 $11 {remains equal.} 17. b4 (17. Nxc6 Bd6 $11) 17... Na4) 17. b4 {[%emt 0:05:16]} Bd8 {[%emt 0:10:25]} 18. Nb3 {[%emt 0:00:40] White is much more active.} (18. Kc2 $16) 18... e5 $14 {[%emt 0:01:22]} 19. Be3 {[%emt 0:00:09]} Be6 {[%emt 0:00:45]} 20. Nfd2 {[%emt 0:01:21]} Nd7 {[%emt 0:07:24]} 21. Kc2 {[%emt 0:00:35]} a5 {[%emt 0:10:15]} 22. Rhd1 {[%emt 0:00:12]} (22. f3 $14) 22... f5 $11 {[%emt 0:05:48] Threatens to win with ...f4.} 23. f3 {[%emt 0:02:40]} a4 {[%emt 0:06:35]} 24. Nc1 {[%emt 0:00:11][%cal Bb3c1,Bc1e2,Be2f4][%mdl 32]} Bf6 {[%emt 0:00:02]} 25. Ne2 {[%emt 0:23:49]} f4 {[%emt 0:04:33]} (25... Rad8 $14) 26. Bf2 {[%emt 0:04:28]} e4 {[%emt 0:00:16] ...e3 would be deadly.} 27. Nxf4 {[%emt 0:00:04]} Bf5 {[%emt 0:02:27] This move loses the game for Black.} (27... Bf7 $16) 28. fxe4 $1 $18 {[%emt 0:00:13]} Bxa1 {[%emt 0:03:31]} 29. exf5 {[%emt 0:00:15]} ({Not} 29. Rxa1 Bxe4+ 30. Nxe4 Rxf4 $15) 29... Rxf5 {[%emt 0:03:39]} 30. Rxa1 {[%emt 0:00:08]} Rxf4 {[%emt 0:00:01] [#]} 31. Bg3 {[%emt 0:00:06]} Rg4 {[%emt 0:04:15] [#]} 32. Re1 {[%emt 0:00:47] Dodges Re8} Rc8 {[%emt 0:02:14]} 33. Re2 {[%emt 0:00:46]} Nf6 {[%emt 0:00:20]} 34. Kd3 {[%emt 0:04:20]} Kf7 $2 {[%emt 0:00:23]} (34... Rg5 {was necessary.} 35. Nf3 Rf5) 35. Nf3 {[%emt 0:00:52]} Nd7 {[%emt 0:01:35]} 36. Nd4 {[%emt 0:03:04]} Nf6 {[%emt 0:00:36]} 37. Be5 {[%emt 0:02:15]} Ne8 {[%emt 0:00:49]} 38. h3 {[%emt 0:01:09]} Rg6 {[%emt 0:00:22]} 39. Kc3 {[%emt 0:01:10]} Nc7 $2 {[%emt 0:00:45]} (39... Nf6 40. Kd3 h6) 40. Rf2+ {[%emt 0:00:38] White is clearly winning.} Kg8 {[%emt 0:00:23]} 41. Bd6 {[%emt 0:51:37]} Ne6 {[%emt 0:00:43]} 42. Nf5 {[%emt 0:00:00] Weighted Error Value: White=0.05 (flawless) /Black=0.29 (precise)} 1-0